Workbook

Sheet Cover Page
D1: Add company logo
N2: Version 22.3 30/11/22
B8: Add photo
N13: Notes:
N14: This template may require adjustments by individual operators to meet specific reporting requirements as defined in the site Permit(s)
B29: Annual Performance Report 2022
B31: Permit EPR/XP3436WB/V002
B33: SUEZ R&R Wilton 11 EfW
B35: other name of facility (if applicable)
B37: SUEZ R&R
B39: Year: | C39: 2022
B41: Address: | C41: Wilton International, Middlesbrough TS10 4RG
B43: Tel: | C43: 01642 442400
B45: Email: | C45: paula.bakes@suez.com
B47: Prepared by: | C47: Paula Bakes | F47: Position: | G47: EIR Manager
B49: Approved by: | C49: Alex Biggins | F49: Position: | G49: Plant Manager
B51: Version: | C51: 1
B53: Issue Date: | C53: 2022-01-12

Sheet Contents
A1: =+'Cover Page'!$B$29 -> Annual Performance Report 2022 | E1: =+'Cover Page'!$B$33 -> SUEZ R&R Wilton 11 EfW
A3: Contents | K3: Notes:
A4: Section | B4: Subject | H4: Page | K4: Section references and Page nos. to be inserted
B5: Facility Information | K5: Sections and Subjects may require adjustment by individual operators to meet specific reporting requirements as defined in the sites Permit(s)
B6: Operational Summary
B7: Operational Data
B8: Performance Form 1
B9: Energy Form 1
B10: Permit Compliance
B11: Improvements
B12: Public Liasion
B13: Carbon dioxide and nitrous oxide emissions
B14: Residue Quality - Optional
B15: Emissions to Water
B16: Emissions to Air (periodically monitored)
B17: Emissions to Air (continuously monitored)
B18: Hydrogen Chloride emissions
B19: Sulphur Dioxdie emsissions
B20: Oxides of Notrigen emissions
B21: Total Organic Carbon emissions
B22: Particulate Matter emissions
B23: Carbon Monoxide emissions
B24: Ammonia emissions
A27: Version Control
A28: Section | B28: Information | H28: Date
A35: Distribution
A36: Copy | B36: Name, Role | H36: No.
A45: This report is required under the Industrial Emissions Directive’s Article 55(2) requirements on reporting and public information on waste incineration plants and co-incineration plants, which require the operator to produce an annual report on the functioning and monitoring of the plant and make it available to the public.

Sheet Facility Info
A1: =+'Cover Page'!$B$29 -> Annual Performance Report 2022 | E1: =+'Cover Page'!$B$33 -> SUEZ R&R Wilton 11 EfW
A3: Plant Description and Design | K3: Notes:
A5: The Energy from Waste facility operates 24/7 and has a design capacity of 49.9 MW. This requires a fuel input with a maximum continuous rating of around 29.2 tonnes per hour of MSW (from Merseyside County Council and various commercial customers) with an average net calorific value of 9.8 MJ/kg. This equates to 467,200 tonnes per annum at 8000 hours operation per annum through two combustion lines. The plant has two Lines capable of processing up to 500,000 tonnes of waste per year. Incoming waste is delivered to site by rail and bulk vehicle trucks. Rail waste is checked at SUEZ’s Knowsley Transfer station, weighed and then loaded into ISO containers before being placed onto rail carriages and transported to the EFW facility. Road waste is weighed via weighbridge at the Wilton site, and then tipped in the traditional way in the waste reception hall. (alt enter to make new para) | K5: Include summary of plant design, design capacity, no. of combustion lines, electrical and heat capacity and any other general information that descibes the facility, its location and purpose
A20: Summary of Operational Processes and Procedures
A22: WASTE RECEPTION The plant is designed to accept contractual waste from Merseyside County Council via rail in bespoke ISO containers. Once at the EFW plant, the containers are lifted off the rail carriages by a gantry crane and placed onto mechanical ‘tilters’ The tilters operate hydraulically and move to the edge of the waste pit waste before being tilted to a 60 degree angle, allowing the waste to fall into the waste pit. Waste is also delivered by road via Bulk Transfer Vehicles in the standard operating way. Air needed for combustion is drawn into the furnace from above the waste reception hall so that odour and dust do not escape from the building. BUNKER Mixing of waste occurs as the crane driver sorts the waste looking for unsuitable wastes to be removed, and to improve the homogeneity of the incinerator feedstock. CONTROL ROOM There is one control room which centralises the operation of all equipment, including the grab crane used to mix and load waste into hoppers that feeds the furnace. All on-site functions are monitored automatically and manually. Its systems verify in real time that equipment is functioning properly, continuously monitor the combustion gas, and maximise the efficiency of the entire EfW process. GRATE AND BOILER Waste is lifted into the feed hoppers by the crane, from here waste falls into the furnace-charging chute and then onto the grate system for incineration. The thermal energy released from the burning is used to convert water to super-heated steam. At high pressure, this steam drives a turbine to generate electricity. ENERGY GENERATION Electricity is generated at 11kv, with an electric capacity of 49.9 MWh. The plant also has the capability of exporting steam at 3 different pressures, 58 bar(g), 17 bar(g) and 1.4 bar(g). Steam is exported into the Wilton International site headers for use by a number of plants on site. Where possible the steam is taken from turbine extract to ensure maximum efficiency. BOTTOM ASH Ash left on the grate after incineration is carried by conveyor to a recycling facility opposite the EFW plant. Once operational (February 2017) the bottom ash recycling facility will use a magnet above the conveyor to extract ferrous material for recycling. The remaining bottom ash is processed for recycling following classification of its hazardous properties. WATER-COOLED CONDENSERS After exiting the turbine, the steam is cooled and condensed back into water through water cooled condensers. This recovered water is treated and reused in the boilers to produce more steam. The water cooled condenser is capable of taking the full load from the boiler to ensure continuous operation of the EfW Plant. EMISSION CONTROL The gases from the furnace are subject to a rigorous cleaning process involving selective non-catalytic reduction (SNCR), spray absorbers, and active carbon injection. This removes oxides of nitrogen, acidic gases, dioxins, and heavy metals from the gas stream. AIR POLLUTION CONTROL RESIDUE (APCR) The cleaned gas is passed through fine-fabric bag filters to remove solid particles before it is emitted through the stack. The resultant APCR residue, or fly-ash, contains particles from the incineration process, we have a semi dry lime injection system. It is stored in a sealed silo until it removed from site for disposal. EMISSIONS MONITORING As they pass through the stack, the residual flue gases from the process are continuously monitored before release. Each incinerator line has and independent stack and emissions monitoring system. This data is relayed automatically to the control room. (alt enter to make new para) | K22: Include summary of key processes and procedures such as (but not limited to); waste reception, control rooms, grate, bed and bolier, energy & heat generation, cooling systems, residue management, emission controls, health and safety systems, maintenance

Sheet Operational Data
A1: =+'Cover Page'!$B$29 -> Annual Performance Report 2022 | E1: =+'Cover Page'!$B$33 -> SUEZ R&R Wilton 11 EfW
A3: Operational Data
A4: Plant Size | B4: 500000 | D4: tonnes pa | E4: 170 | F4: MWth | G4: 49 | H4: MWe
A5: No. of combustion lines | B5: 2 | D5: No. of Turbines: | F5: 1
A7: Waste types received | B7: Unit | C7: Q1 | D7: Q2 | E7: Q3 | F7: Q4 | G7: Year Total | H7: %
A8: Household / Local Authority | B8: tonnes | C8: 123564 | D8: 100109 | E8: 78652 | F8: 49553 | G8: =SUM(C8:F8) -> 351878 | H8: =IF(G8>0,G8/$G$18,"-") -> 0.987891328
A9: Commercial & Industrial | C9: 3088 | D9: - | E9: - | F9: - | G9: =SUM(C9:F9) -> 3088 | H9: 0.008669505967
A10: Hazardous | C10: - | D10: - | E10: - | F10: - | G10: 0 | H10: -
A11: Clinical | C11: - | D11: - | E11: - | F11: - | G11: 0 | H11: -
A12: Waste wood (biomass) | C12: - | D12: - | E12: - | F12: - | G12: 0 | H12: -
A13: Refuse derived fuel | C13: 129 | D13: - | E13: - | F13: - | G13: 129 | H13: 0.0003621652428
A14: Solid recovered fuel | C14: 1096 | D14: - | E14: - | F14: - | G14: 1096 | H14: 0.003077000823
A15: Spec Compost 19.05.03 | G15: 0 | H15: -
A16: Other [Please specify] | G16: 0 | H16: -
A17: Other [Please specify]
A18: Total waste received | C18: =SUM(C8:C17) -> 127877 | D18: =SUM(D8:D17) -> 100109 | E18: =SUM(E8:E17) -> 78652 | F18: =SUM(F8:F17) -> 49553 | G18: =SUM(G8:G17) -> 356191 | H18: 1
A19: Rejected Waste | C19: 0 | D19: 0 | E19: 0 | F19: 0 | G19: =SUM(C19:F19) -> 0 | H19: =IF(G19>0,G19/$G$18,"-") -> -
A20: Waste transferred out | C20: 0 | D20: 2 | E20: 55 | F20: 77 | G20: =SUM(C20:F20) -> 134 | H20: =IF(G20>0,G20/$G$18,"-") -> 0.0003762026553
A21: Total waste combusted | C21: =C18-SUM(C19:C20) -> 127877 | D21: =D18-SUM(D19:D20) -> 100107 | E21: 78597 | F21: 49476 | G21: =SUM(C21:F21) -> 356057 | H21: =IF(G21>0,G21/$G$18,"-") -> 0.9996237973
A22: Energy Useage / Export | B22: Unit | C22: Q1 | D22: Q2 | E22: Q3 | F22: Q4 | G22: Year Total | H22: KWh/te
A23: Power Generated | B23: MWh | C23: 46239 | D23: 43533 | E23: 36934 | F23: 18216 | G23: =SUM(C23:F23) -> 144922 | H23: =IF(G23>0,G23*1000/$G$21,"-") -> 407.0191009
A24: Power Exported | C24: 36917 | D24: 34490 | E24: 29045 | F24: 13414 | G24: =SUM(C24:F24) -> 113866 | H24: =IF(G24>0,G24*1000/$G$21,"-") -> 319.7971111
A25: Power Used on site | C25: 9323 | D25: 9043 | E25: 7889 | F25: 4802 | G25: =SUM(C25:F25) -> 31057 | H25: =IF(G25>0,G25*1000/$G$21,"-") -> 87.22479828
A26: Power Imported | C26: 48 | D26: 205 | E26: 163 | F26: 1168 | G26: 1584 | H26: =IF(G26>0,G26*1000/$G$21,"-") -> 4.448725906
A27: Parasitic Load | B27: % | C27: 0.202 | D27: 0.211 | E27: 0.217 | F27: 0.308 | G27: =IF(G23>0,1-G24/(G23+G26),"-") -> 0.2227895103
A28: Thermal Energy Produced | B28: MWh | G28: =SUM(C28:F28) -> 0 | H28: =IF(G28>0,G28*1000/$G$21,"-") -> -
A29: Thermal Energy Exported | G29: 0 | H29: =IF(G29>0,G29*1000/$G$21,"-") -> -
A30: R1 value | C30: 0.83 | G30: Design / Operational / n/a
A32: Waste Disposal & Recovery | B32: Unit | C32: Q1 | D32: Q2 | E32: Q3 | F32: Q4 | G32: Year Total | H32: % inputs
A33: APC Residues - produced | B33: tonnes | C33: 2332 | D33: 1881 | E33: 1614 | F33: 1047 | G33: =SUM(C33:F33) -> 6874 | H33: =IF(G33>0,G33/$G$21,"-") -> 0.01930589765
A34: IBA - produced | C34: 29694 | D34: 22365 | E34: 19197 | F34: 11114 | G34: 82370 | H34: =IF(G34>0,G34/$G$21,"-") -> 0.2313393642
A35: Metals recycling | C35: 5055 | D35: 3582 | E35: 3480 | F35: 1322 | G35: =SUM(C35:F35) -> 13439 | H35: 0.03774395673
A36: Ferrous | C36: 3203 | D36: 2051 | E36: 2085 | F36: 672 | G36: =SUM(C36:F36) -> 8011 | H36: 0.02249920659
A37: Non Ferrous | C37: 1852 | D37: 1529 | E37: 1379 | F37: 611 | G37: 5371 | H37: 0.01508466341
A38: Mixed Metal Skips (Scrap Metal Skips) | C38: - | D38: 3 | E38: 16 | F38: 39 | G38: 58 | H38: 0.0001628952668
A40: Raw Material Usage | B40: Unit | C40: Q1 | D40: Q2 | E40: Q3 | F40: Q4 | G40: Year Total | H40: kg or Ltr /te
A41: Mains Water | B41: m3 | C41: 0 | D41: 0 | E41: 0 | F41: 0 | G41: =SUM(C41:F41) -> 0 | H41: =IF(G41>0,G41/$G$21,"-") -> -
A42: Other Water ( Demin & Raw) | B42: m3 | C42: 0 | D42: 0 | E42: 0 | F42: 0 | G42: 0 | H42: =IF(G42>0,G42/$G$21,"-") -> -
A43: Ammonia / Urea | B43: kgs | C43: 509300 | D43: 428500 | E43: 350500 | F43: 170000 | G43: 1458300 | H43: 4.095692544
A44: Activated Carbon | B44: kgs | C44: 26220 | D44: 18360 | E44: 15300 | F44: 10400 | G44: 70280 | H44: 0.1973841267
A45: Lime / hydrated lime | B45: kgs | C45: 1032400 | D45: 871200 | E45: 734840 | F45: 433340 | G45: 3071780 | H45: 8.627214182
A46: Fuel oil (Mobile Plant) | B46: ltrs | C46: 879 | D46: 1033 | E46: 7032 | F46: 16833 | G46: 25777 | H46: 0.07239571192
A47: Natural Gas | B47: MWh | C47: 1304 | D47: 2549 | E47: 2576 | F47: 3987 | G47: 10416 | H47: 0.02925374308
A48: Other | C48: 0 | D48: 0 | E48: 0 | F48: 0 | G48: 0 | H48: -
A50: Summary of Hours | B50: Line/Unit | C50: Q1 | D50: Q2 | E50: Q3 | F50: Q4 | G50: Year Total
A51: Hours of waste combustion, total | B51: 1 | C51: 2159 | D51: 1559.7 | E51: 1303.7 | F51: 1122.7 | G51: =SUM(C51:F51) -> 6145.1 | H51: =+(G51)/8760 -> 0.7014954338
A52: Hours of waste combustion, total | B52: 2 | C52: 2070.8 | D52: 1684.8 | E52: 1721 | F52: 633.8 | G52: 6110.4 | H52: =+(G52)/8760 -> 0.6975342466
A53: Hours of waste combustion, total | B53: 3 | G53: 0 | H53: x %
A54: Hours of waste combustion, total | B54: 4 | G54: 0 | H54: x %
A55: Hours of waste combustion, total | B55: 5 | G55: =SUM(C55:F55) -> 0 | H55: x %
A56: Overall Avaliability, mean average of all lines | G56: =AVERAGE(G51:G52) -> 6127.75 | H56: =+(G56)/8760 -> 0.6995148402
A57: Hours of turbine operations, total | B57: 1 | C57: 1956 | D57: 2077 | E57: 1811 | F57: 1432 | G57: 7276 | H57: x %
A58: Hours of turbine operations, total | B58: 2 | G58: 0 | H58: x %
A59: Hours of heat / steam export | C59: 44981 | D59: 22013 | E59: 16698 | F59: 8702 | G59: 92394 | H59: =IF(B59>0,G58/8760,"n/a") -> n/a
A60: Net Calorific Value of waste | B60: MJ/kg | G60: 0
A61: Abnormal Events | B61: qty. | C61: - | D61: 0 | E61: 0 | F61: 0 | G61: 0 | H61: =IF(G61>0,"yes","no") -> no
A62: Abnormal operation | B62: hours | C62: - | D62: 0 | E62: 0 | F62: 0 | G62: 0 | H62: =+(G62)/8760 -> 0
A63: Permit Breaches | B63: qty. | C63: 1 | D63: 0 | E63: 0 | F63: 0 | G63: 1 | H63: =IF(G63>0,"yes","no") -> yes

Sheet Operational Summary
A1: =+'Cover Page'!$B$29 -> Annual Performance Report 2022 | E1: =+'Cover Page'!$B$33 -> SUEZ R&R Wilton 11 EfW
A3: Summary of Plant Operations and Maintenance during the reporting year | K3: Notes:
A5: We have had a very challenging 2022 with tube leaks in the second pass on Line 1 and first pass on Line 2 The Grate on Line Two had to be brought off line due to blockage in Jan 22, which was subsequently identified as grate bars failure; several grate bars had fractured and fell through to the grate bed causing a build up of ash under the grate. This problem was shared with the OEM and whilst this is an uncommon failure it was not unique. There were 6 tube leaks in Line 1 second pass throughout 2022. The second pass pendants have now been replaced with incolnel overlayed tube so will eliminate these issues moving forward. Line 2 has had 3 tube leaks in the 1st pass throughout 2022. There has been extensive boiler tube and refractory replacement in the planned major outage so this should improve into 2023. The turbine was brought off line at Sembcorp request 3 times in 2022 so that Wilton 11 could export steam only. There were two planned maintenance periods during 2022; the first being a minor outages planned for the first and second week of April. The major maintenance activity which was planned over Sep, was extended significantly due to the emergent boiler tube and refractory replacement, FGT plating repairs due to corrosion following technical surveys. Major maintenance activity included boiler tube repairs, refractory survey and replacement and a minor service on the Grate. The Turbine underwent a minor service with nothing of significance to report and is due the major turbine and generator service in 2023. The shutdown periods were: Line 1, 1st Sept - 6th Nov 2022 Line 2, 20th Oct - 25th Dec 2022 | K5: Include summary of key operational and/or maintenance activity undertaken in the year, such as any major component upgrades and/or replacements
A29: Summary of Residue Handling for the reporting year
A31: Residue handling system has performed well in 2022. | K31: Include in here a summary of residue handling regimes and destinations

Sheet Perf. Form 1
A1: =+'Cover Page'!C39 -> 2022 | B1: Annual Reporting Performance Form 1
A3: =+'Cover Page'!B31 -> Permit EPR/XP3436WB/V002 | F3: Operator: | G3: =+'Cover Page'!B37:I37 -> 0
A4: Facility: | B4: =+'Cover Page'!B33:I33 -> SUEZ R&R Wilton 11 EfW | F4: Form: | G4: Performance 1
A6: Reporting Period from: | D6: January | F6: to: | G6: December
A8: =+A1 -> 2022 | B8: Annual Reporting of Waste Disposal and Recovery
A9: Waste Description | C9: Disposal Route(s) | E9: Disposal Tonnes | G9: Recovery Tonnes | I9: % / tonne of waste incinerated
A10: 1) Hazardous Wastes
A11: APC Residues | C11: Landfill | E11: ='Operational Data'!G33 -> 6874 | G11: 0 | I11: =IF((E11+G11)>0,(E11+G11)/'Operational Data'!$G$21, "-") -> 0.01930589765
A12: IBA | I12: =IF((E12+G12)>0,(E12+G12)/'Operational Data'!$G$21, "-") -> -
I13: =IF((E13+G13)>0,(E13+G13)/'Operational Data'!$G$21, "-") -> -
I14: =IF((E14+G14)>0,(E14+G14)/'Operational Data'!$G$21, "-") -> -
A15: Total Hazardous Waste | E15: =SUM(E11:F14) -> 6874 | G15: =SUM(G11:H14) -> 0 | I15: =IF((E15+G15)>0,(E15+G15)/'Operational Data'!$G$21, "-") -> 0.01930589765
A17: 2) Non-Hazardous Wastes
A18: IBA | C18: Recovery | E18: ='Operational Data'!G34 -> 82370 | I18: =IF((E18+G18)>0,(E18+G18)/'Operational Data'!$G$21, "-") -> 0.2313393642
A19: Total Metals | C19: Recovery | E19: ='Operational Data'!G35 -> 13439 | I19: =IF((E19+G19)>0,(E19+G19)/'Operational Data'!$G$21, "-") -> 0.03774395673
A20: Process Water | I20: =IF((E20+G20)>0,(E20+G20)/'Operational Data'!$G$21, "-") -> -
I21: =IF((E21+G21)>0,(E21+G21)/'Operational Data'!$G$21, "-") -> -
I22: =IF((E22+G22)>0,(E22+G22)/'Operational Data'!$G$21, "-") -> -
A23: Total Non-Hazardous Waste | E23: =SUM(E18:F22) -> 95809 | G23: =SUM(G18:H22) -> 0 | I23: =IF((E23+G23)>0,(E23+G23)/'Operational Data'!$G$21, "-") -> 0.2690833209
A24: TOTAL WASTE | E24: =+E23+E15 -> 102683 | G24: =+G23+G15 -> 0 | I24: =IF((E24+G24)>0,(E24+G24)/'Operational Data'!$G$21, "-") -> 0.2883892186
A26: Operator’s comments :
A31: =+A1 -> 2022 | B31: Annual Reporting of Water and Other Raw Material Usage
A32: Raw Material | E32: Usage | G32: Unit | H32: Specific Useage | J32: Unit
A33: Mains Water | E33: =+'Operational Data'!G41 -> 0 | G33: m3 | H33: =IF(E33>0,E33/'Operational Data'!$G$21,"-") -> - | J33: m3/te
A34: Total Water | E34: =+'Operational Data'!G42+'Operational Data'!G41 -> 0 | G34: m3 | H34: =IF(E34>0,E34/'Operational Data'!$G$21,"-") -> - | J34: m3/te
A35: Urea / Ammonia | E35: =+'Operational Data'!G43 -> 1458300 | G35: kg | H35: =IF(E35>0,E35/'Operational Data'!$G$21,"-") -> 4.095692544 | J35: kg/te
A36: Activated Carbon | E36: =+'Operational Data'!G44 -> 70280 | G36: kg | H36: =IF(E36>0,E36/'Operational Data'!$G$21,"-") -> 0.1973841267 | J36: kg/te
A37: Lime / hydrated lime / Sodium Bicarb. | E37: =+'Operational Data'!G45 -> 3071780 | G37: kg | H37: =IF(E37>0,E37/'Operational Data'!$G$21,"-") -> 8.627214182 | J37: kg/te
A39: Operator’s comments :
A43: =+A31 -> 2022 | B43: Annual Reporting of other performance indicators
A44: Parameter | C44: Results by Line
C45: A1 | D45: A2 | E45: A3 | F45: A4 | G45: A5 | I45: Turbine 1 | J45: Turbine 2
A46: Operating hours for the year, hours | C46: ='Operational Data'!G51 -> 6145.1 | D46: ='Operational Data'!G52 -> 6110.4
A47: Number of periods of abnormal operation, qty. | C47: 0 | D47: 0
A48: Cumulative hours of abnormal operation for this year, hours | C48: 0 | D48: 0
A50: Operator’s comments :
A54: Signed: | G54: Date:

Sheet Energy Form 1
A1: =+'Cover Page'!C39 -> 2022 | B1: Annual Reporting of Energy Usage/Export
A3: =+'Cover Page'!B31 -> Permit EPR/XP3436WB/V002 | F3: Operator: | G3: =+'Cover Page'!B37:I37 -> 0
A5: Facility: | B5: =+'Cover Page'!B33:I33 -> SUEZ R&R Wilton 11 EfW | F5: Form: | G5: Energy 1
A7: Reporting Period from: | D7: =+'Perf. Form 1'!D6:E6 -> January | F7: to: | G7: =+'Perf. Form 1'!G6:H6 -> December
A9: Energy Source | D9: Energy Usage | F9: Unit | G9: Specific Useage (KWh/tonne incinerated
A10: Electricity Produced | D10: =+'Operational Data'!G23 -> 144922 | F10: MWh | G10: =+'Operational Data'!H23 -> 407.0191009
A11: Electricity Imported | D11: =+'Operational Data'!G26 -> 1584 | F11: MWh | G11: =+'Operational Data'!H26 -> 4.448725906
A12: Electricity Exported | D12: =+'Operational Data'!G24 -> 113866 | F12: MWh | G12: =+'Operational Data'!H24 -> 319.7971111
A13: Natural Gas | D13: ='Operational Data'!G47 -> 10416 | F13: tonnes | G13: ='Operational Data'!H47 -> 0.02925374308
A14: Steam/hot water exported | D14: =+'Operational Data'!G29 -> 0 | F14: GWh | G14: =+'Operational Data'!H29 -> -
A18: Operator’s comments :
A29: Signed: | G29: Date:

Sheet Permit Compliance
A1: =+'Cover Page'!$B$29 -> Annual Performance Report 2022 | E1: =+'Cover Page'!$B$33 -> SUEZ R&R Wilton 11 EfW
A3: Summary of Permit Compliance
A5: Compliance with permit limits for continuously monitored pollutants
A7: The plant met its emission limits as shown in the table below:
A8: Substance | C8: Percentage time compliant during operation
C9: Half-hourly limit | F9: Daily limit
A10: Particulates | C10: 1 | F10: 1
A11: Oxides of nitrogen | C11: 1 | F11: 1
A12: Sulphur dioxide | C12: 1 | F12: 1
A13: Carbon monoxide | C13: 100% 95% of 10-min averages | F13: 1
A14: Total organic carbon | C14: 0.99995 | F14: 1
A15: Hydrogen chloride | C15: 1 | F15: 1
A16: Hydrogen fluoride | C16: NA | F16: NA
A19: Summary of any notifications or non-compliances under the permit
A20: Date | B20: Summary of notification or non-compliance [including Line/Reference] | E20: Reason | H20: Measures taken to prevent reoccurrence
A21: 2022-01-07 | B21: W11 001/2022 Line 2 Boiler Trip | E21: The Boiler tripped due to an operator error, the operator was being trained on the DCS. The grate feeders stroke lengths and Camera were manually reduced, causing the burners to cut in when the boiler temperature dropped. Waste feed had stopped meaning there was minimal waste on the grates, the burners ramped up and superheater temperatures raised, causing the boiler to trip. The boiler was restarted, but due to ID Fan, primary and secondary air fans being left in manual a breach occurred. A trained operator took over and brought the plant back online in a safe and controlled manner. No further mistakes have taken place following a robust training programme. | H21: • Full DCS training to be given to new starters/Promotions and signed off • Toolbox talks on reporting of breaches to be given to Shift Teams
A27: Summary of any complaints received and actions to taken to resolve them.
A28: Date | B28: Summary of complaint [including Line/Reference] | E28: Reason * | H28: Measures taken to prevent reoccurrence
E34: * including whether substantiated by the operator or the EA

Sheet Improvements
A1: =+'Cover Page'!$B$29 -> Annual Performance Report 2022 | E1: =+'Cover Page'!$B$33 -> SUEZ R&R Wilton 11 EfW
A3: Summary of Plant Improvements
A5: Summary of any efficiency improvements that have been completed within the year.
A6: The improvements made in 2021, specifically installed SPGs and Steam Cycle Improvements have continued to yield positive results. Improvements have been made to the Boiler Design to remove failure modes from the Boiler. New materials have been installed that are more hard wearing which will reduce tube wear and improve the longevity. Class 5 Isolation valves have been installed in the HP steam lines which gaurentee a lower leakage rate therefore improve efficency of the boiler steam output. Considerable work to improve the efficency of the FGT + Bag Filter carried out by minimising air ingress to flue gas path. This is having a postive effect on ragent usage.
A16: Summary of any permit improvement conditions that have been completed within the year and the resulting environmental benefits.
A17: None, completed in previous years.
A27: Summary of any changes to the plant or operating techniques which required a variation to the permit and a summary of the resulting environmental impact.
A28: None.
A38: Summary of any other improvements made to the plant or planned to be made and a summary of the resulting environmental benefits.
A39: Improvement as detailed above to the FGT is reduced reagent consumption.

Sheet Public Liasion
A1: =+'Cover Page'!$B$29 -> Annual Performance Report 2022 | E1: =+'Cover Page'!$B$33 -> SUEZ R&R Wilton 11 EfW
A3: Details of Public & Stakeholder Liasion
A5: Summary of events held during the reporting year.
A6: Date | C6: Description
A7: 2022-04-22 | C7: EA visit to complete R1 validation
A9: 2022-06-09 | C9: Groups visit of 22 by the Dept. National Trade
A11: 2022-06-09 | C11: 1 visitor from Weighpoint
A13: 2022-11-18 | C13: 3 visitors to conduct audit with Mott McDonald
A19: List of events planned for next year
A20: Date | C20: Description
A32: If you wish to be involved in the public liasion programme, please contact _________________

Sheet CO2 N20
A1: =+'Cover Page'!$B$29 -> Annual Performance Report 2022 | C1: =+'[1]Cover Page'!$B$33 -> Name of Facility as per Permit
A3: Carbon dioxide emissions and biogenic content of waste inputs | E3: Notes:
A5: Carbon dioxide emissions (all types of plant)
A6: Annual mass of carbon dioxide released | B6: 357812.1737 tonnes
A7: Annual mass of carbon dioxide released per tonne of waste burned | B7: 1.00 tonnes
A8: Annual mass of carbon dioxide released per MWh of energy exported | B8: 3.14 tonnes
A9: Description of how annual carbon dioxide mass emission has been calculated | B9: Calculated from reported CO2 volume fraction on the CEMS and the stack flowrate readings on an adjusted basis for each line | E9: Note 1: Where available, data from CO2 CEMS should be used. Otherwise, where no CEMS data is available, a suitable emissions factor should be used based on the tonnage of waste burned e.g.0.992 tCO2/t waste as per Tolvik report 2021, or other justified emissions factor - refer to embedded Environment Agency guidance note above or updated version for suitable descriptive text.
A11: Nitrous oxide emissions (only plants which use ammonia or urea to abate NOx emissions)
A12: Annual mass emissions of nitrous oxide | B12: 0.5 tonnes
A13: Description of how annual nitrous oxide mass emission has been calculated | B13: Calculated from reported N2O mass concentration on the CEMS and the stack flowrate readings on an adjusted basis for each line | E13: Note 2: Where available, data from N2O CEMS should be used, or if no CEMS data is available, from periodic monitoring. Otherwise, a suitable emissions factor should be used based on the tonnage of waste burned e.g. 0.0981 kgN20/t waste as per 2021 Pollution Inventory data for plants with urea-based SNCR - refer to embedded Environment Agency guidance note above or updated version for suitable descriptive text.
A14: Total annual carbon dioxide and nitrous oxide emissions as carbon dioxide equivalent (whereby 1 t nitrous oxide is equivalent to 298 t carbon dioxide) | B14: 357,961 tonnes CO2e
A16: Biogenic fraction of the waste and biogenic CO2 emissions (only plants burning residual municipal waste, refuse derived fuel or solid recovered fuel)
A17: Yearly average biogenic percentage of the waste by net calorific value (NCV) | B17: 0.5
A18: Description of how biogenic NCV percentage has been calculated or estimated | B18: From CO2 boigenic analyser on site | E18: Note 3: Where available, data from waste sampling should be used; otherwise, an estimated figure with justification can be used, or a figure assumed on the basis of a national average e.g. 2017 WRAP data for residual waste of 51.8% biogenic energy content - refer to embedded Environment Agency guidance note above or updated version for suitable descriptive text, quoting standards where relevant.
A19: Percentage of total carbon dioxide emissions arising from biogenic waste | B19: 0.5
A20: Description of how percentage biogenic carbon dioxide emissions have been calculated | B20: From CO2 boigenic analyser on site | E20: Note 4: Examples include direct measurement via C14 method or BIOMA software - refer to embedded Environment Agency guidance note above or updated version for suitable descriptive text, quoting standards where relevant. Otherwise, as an approximation (and in lieu of any more accurate metrics which may be developed in future), the measured or estimated biogenic fraction by net calorific value can be assumed to be the same as the biogenic CO2 fraction of the total CO2 emissions from the plant.
A22: Comments:

Sheet Residue Quality
A1: =+'Cover Page'!$B$29 -> Annual Performance Report 2022 | E1: =+'Cover Page'!$B$33 -> SUEZ R&R Wilton 11 EfW
A3: Residue Quality Monitoring Requirements
A5: Summary of monitoring undertaken and compliance
A6: Quarterly IBA & APCR samples taken on Lines 1&2
A8: Fortnightly hazard assessment carried out on Lines 1&2
A13: Commentary on any specific events
A14: Date & Event | C14: Description
A27: Residue Quality Monitoring Results
A28: Parameter (unit) | C28: Limit | D28: Normal Operation
D29: Bottom ash | F29: APC Residues
A30: Loss on Ignition (%) | C30: <5% | D30: -
A31: ToC (%) | C31: <3% | D31: 0.0089
A32: No. of Assessments Undertaken | C32: --- | D32: 1 samples per quarter
A33: No. of Hazardous Assessments | C33: --- | D33: Fortnightly hazard assessment, unless plant outage
A35: Comments :

Sheet Water
A1: =+'Cover Page'!$B$29 -> Annual Performance Report 2022 | E1: =+'Cover Page'!$B$33 -> SUEZ R&R Wilton 11 EfW
A3: Emissions to Water
A5: Summary of monitoring undertaken and compliance
A6: None carried out
A13: Commentary on any specific events
A14: Date & Event | C14: Description
A22: Emissions to Water / Sewer
A23: Parameter | D23: Monitoring Frequency | G23: Limit | H23: Target | I23: Max. | J23: Average

Sheet Air (periodic)
A1: =+'Cover Page'!$B$29 -> Annual Performance Report 2022 | E1: =+'Cover Page'!$B$33 -> SUEZ R&R Wilton 11 EfW
A3: Emissions to Air (periodically monitored)
A5: Summary of monitoring undertaken, standards used and compliance | M5: Notes:
A6: Monitoring completed biannually. | M6: Template may require adjustment for any bespoke monitoring requirements of permit.
A9: Results of emissions to air that are periodically monitored
A10: Substance | C10: Ref. Period | D10: Emission Limit Value | F10: Average | M10: User to add additional tables as necessary, depending on whether quarterly or bi-annual reporting is required for the compliance year
F11: A1 | G11: A2 | H11: A3 | I11: A4 | J11: A5
A12: Hydrogen fluoride | C12: 1 hr | D12: 2 mg/m3 | F12: 0.029 | G12: 0.00285
A13: Cd and Th and their compounds | C13: 6-8hrs | D13: 0.05 mg/m3 | F13: 0.000457 | G13: 0.00084
A14: Hg and its compounds | C14: 6-8hrs | D14: 0.05 mg/m3 | F14: 0.0033 | G14: 0.00098
A15: Sb, As, Pb, Cr, Co, Cu, Mn, Ni, V and their compounds | C15: 6-8hrs | D15: 0.5 mg/m3 | F15: 0.0133 | G15: 0.0192
A16: Dioxins & Furans (I-TEQ) | C16: 6-8hrs | D16: 0.1 ng/m3 | F16: 0.0176 | G16: 0.00585
A17: PCBs (WHO-TEQ Humans / Mammals) | C17: 6-8hrs | D17: None set ng/m3 | F17: 0.0023 | G17: 0.00052
A18: PCBs (WHO-TEQ Fish) | C18: 6-8hrs | D18: None set ng/m3 | F18: 0.00025 | G18: 3.4e-05
A19: PCBs (WHO-TEQ Birds) | C19: 6-8hrs | D19: None set ng/m3 | F19: 0.01505 | G19: 0.0059
A20: Dioxins & Furans (WHO-TEQ Humans / Mammals) | C20: 6-8hrs | D20: None set ng/m3 | F20: 0.01865 | G20: 0.00585
A21: Dioxins & Furans (WHO-TEQ Fish) | C21: 6-8hrs | D21: None set ng/m3 | F21: 0.0194 | G21: 0.006
A22: Dioxins & Furans (WHO-TEQ Birds) | C22: 6-8hrs | D22: None set ng/m3 | F22: 0.034 | G22: 0.00915
A23: Anthanthrene | C23: 6-8hrs | D23: None set µg/m3 | F23: 0.0014 | G23: 0.0014
A24: Benzo(a)anthracene | C24: 6-8hrs | D24: None set µg/m3 | F24: 0.00335 | G24: 0.0014
A25: Benzo(a)pyrene | C25: 6-8hrs | D25: None set µg/m3 | F25: 0.0016 | G25: 0.0014
A26: Benzo(b)fluoranthene | C26: 6-8hrs | D26: None set µg/m3 | F26: 0.00255 | G26: 0.0014
A27: Benzo(b)naptho(2,1-d) thiophene | C27: 6-8hrs | D27: None set µg/m3 | F27: 0.0014 | G27: 0.0014
A28: Benzo(c)phenanthrene | C28: 6-8hrs | D28: None set µg/m3 | F28: 0.00155 | G28: 0.0014
A29: Benzo(ghi)perylene | C29: 6-8hrs | D29: None set µg/m3 | F29: 0.00225 | G29: 0.0014
A30: Benzo(k)fluoranthene | C30: 6-8hrs | D30: None set µg/m3 | F30: 0.0015 | G30: 0.0014
A31: Cholanthrene | C31: 6-8hrs | D31: None set µg/m3 | F31: 0.0014 | G31: 0.0014
A32: Chrysene | C32: 6-8hrs | D32: None set µg/m3 | F32: 0.0045 | G32: 0.00175
A33: Cyclopenta(cd)pyrene | C33: 6-8hrs | D33: None set µg/m3 | F33: 0.0019 | G33: 0.0014
A34: Dibenzo(ai)pyrene | C34: 6-8hrs | D34: None set µg/m3 | F34: 0.0014 | G34: 0.0014
A35: Dibenzo(ah)anthracene | C35: 6-8hrs | D35: None set µg/m3 | F35: 0.0014 | G35: 0.0014
A36: Fluoranthene | C36: 6-8hrs | D36: None set µg/m3 | F36: 0.01835 | G36: 0.00995
A37: Indeno(123-cd) pyrene | C37: 6-8hrs | D37: None set µg/m3 | F37: 0.0025 | G37: 0.0014
A38: Naphthalene | C38: 6-8hrs | D38: None set µg/m3 | F38: 0.125 | G38: 0.0865
A39: Comments :

Sheet Air (CEMS)
A1: =+'Cover Page'!$B$29 -> Annual Performance Report 2022 | I1: =+'Cover Page'!$B$33 -> SUEZ R&R Wilton 11 EfW
A3: Emissions to Air (continously monitored)
P4: Notes:
A5: Summary of monitoring undertaken, standards used and compliance | P5: Template may require adjustment for any bespoke monitoring requirements of permit
A11: Results of emissions to air that are continuously monitored
A12: Substance | B12: Reference Period | C12: Emission Limit Value | D12: A1 | F12: A2 | H12: A3 | J12: A4 | L12: A5
D13: Max. | E13: Avg. | F13: Max. | G13: Avg. | H13: Max. | I13: Avg. | J13: Max. | K13: Avg. | L13: Max. | M13: Avg.
A14: Oxides of nitrogen | B14: Daily mean | C14: 200 mg/m3 | D14: =NOx!$O$19 -> 194 | E14: =NOx!$N$19 -> 165.7 | F14: =NOx!$O$34 -> 191 | G14: =NOx!$N$34 -> 171.7272727
B15: ½ hourly mean | C15: 400 mg/m3 | D15: =NOx!$M$19 -> 395 | E15: =NOx!$L$19 -> 165.7 | F15: =NOx!$M$34 -> 323 | G15: =NOx!$L$34 -> 171.7272727
A16: Particulates | B16: Daily mean | C16: 10 mg/m3 | D16: =Particulates!$O$19 -> 1.7 | E16: =Particulates!$N$19 -> 0.56 | F16: =Particulates!$O$34 -> 0.5 | G16: =Particulates!$N$34 -> 0.4
B17: ½ hourly mean | C17: 30 mg/m3 | D17: =Particulates!$M$19 -> 6.2 | E17: =Particulates!$L$19 -> 0.56 | F17: =Particulates!$M$34 -> 4.1 | G17: =Particulates!$L$34 -> 0.4
A18: Total Organic Carbon | B18: Daily mean | C18: 10 mg/m3 | D18: =TOC!$O$19 -> 1 | E18: =TOC!$N$19 -> 0.55 | F18: =TOC!$O$34 -> 3.9 | G18: =TOC!$N$34 -> 0.5
B19: ½ hourly mean | C19: 20 mg/m3 | D19: =TOC!$M$19 -> 6.7 | E19: =TOC!$L$19 -> 0.55 | F19: =TOC!$M$34 -> 97 | G19: =TOC!$L$34 -> 0.5
A20: Hydrogen chloride | B20: Daily mean | C20: 10 mg/m3 | D20: =HCl!$O$19 -> 8 | E20: =HCl!$N$19 -> 5.1 | F20: =HCl!$O$34 -> 9 | G20: =HCl!$N$34 -> 6.272727273
B21: ½ hourly mean | C21: 60 mg/m3 | D21: =HCl!$M$19 -> 27 | E21: =HCl!$L$19 -> 5.1 | F21: =HCl!$M$34 -> 36 | G21: =HCl!$L$34 -> 6.272727273
A22: Sulphur dioxide | B22: Daily mean | C22: 50 mg/m3 | D22: ='SO2'!$O$19 -> 44 | E22: ='SO2'!$N$19 -> 26.4 | F22: ='SO2'!$O$34 -> 43 | G22: ='SO2'!$N$34 -> 27.18181818
B23: ½ hourly mean | C23: 200 mg/m3 | D23: ='SO2'!$M$19 -> 159 | E23: ='SO2'!$L$19 -> 26.4 | F23: ='SO2'!$M$34 -> 155 | G23: ='SO2'!$L$34 -> 27.18181818
A24: Carbon monoxide | B24: Daily mean | C24: 50 mg/m3 | D24: ='CO 95% 10 min'!Q19 -> 18 | E24: ='CO 95% 10 min'!P19 -> 8.9 | F24: ='CO 95% 10 min'!Q34 -> 42 | G24: ='CO 95% 10 min'!P34 -> 5.818181818
B25: ½ hourly mean * | C25: 100 mg/m3 *
B26: 95%ile 10-min avg * | C26: 150 mg/m3 * | D26: ='CO 95% 10 min'!M19 -> 12 | F26: ='CO 95% 10 min'!M34 -> 7.272727273
A27: Ammonia | B27: Daily mean | C27: No limit set | D27: ='NH3'!$O$19 -> 5 | E27: ='NH3'!$N$19 -> 0.3 | F27: ='NH3'!$O$34 -> 2 | G27: ='NH3'!$N$34 -> 0.3636363636
A28: * = delete or amend as appropriate
A29: Comments :

Sheet HCl
A1: =+'Cover Page'!$B$29 -> Annual Performance Report 2022 | E1: =+'Cover Page'!$B$33 -> SUEZ R&R Wilton 11 EfW
A3: Monitoring of Hydrogen Chloride emissions | D3: Whole Installation | G3: See Notes in Cell Q3 | J3: =+A3 -> Monitoring of Hydrogen Chloride emissions | N3: Per Combustion Line | Q3: Notes:
Q4: User to add logic to complete Whole installation, Table A5:G18. From the data in Per Combustion Line, Table J6:O79, subject to No. of lines installed
A5: mg/Nm3 | B5: 1/2 Hourly Reference Periods | E5: Daily Reference Periods
A6: =+'Cover Page'!C39 -> 2022 | B6: 1/2 hourly HCl ELV | C6: Monthly 1/2 hourly mean | D6: Highest 1/2 hourly maximum | E6: Daily HCl ELV | F6: Monthly daily mean | G6: Highest daily maximum | J6: =+A6 -> 2022 | K6: mg/Nm3 | L6: Monthly 1/2 hourly mean | M6: Monthly 1/2 hourly maximum | N6: Monthly daily mean | O6: Monthly daily maximum
A7: Jan | B7: 60 | C7: =AVERAGE(L7,L22) -> 4.5 | D7: =MAX(M7,M22) -> 28 | E7: 10 | F7: =AVERAGE(N7,N22) -> 4.5 | G7: =MAX(O7,O22) -> 8 | J7: A1 | K7: Jan | L7: 4 | M7: 14 | N7: 4 | O7: 8
A8: Feb | B8: 60 | C8: =AVERAGE(L8,L23) -> 7 | D8: =MAX(M8,M23) -> 36 | E8: 10 | F8: =AVERAGE(N8,N23) -> 7 | G8: =MAX(O8,O23) -> 8 | K8: Feb | L8: 7 | M8: 11 | N8: 7 | O8: 8
A9: Mar | B9: 60 | C9: 7.5 | D9: 27 | E9: 10 | F9: 7.5 | G9: 9 | K9: Mar | L9: 8 | M9: 27 | N9: 8 | O9: 8 | Q9: Whole Installation table A5:G18:
A10: Apr | B10: 60 | C10: 6.5 | D10: 13 | E10: 10 | F10: 6.5 | G10: 9 | K10: Apr | L10: 5 | M10: 11 | N10: 5 | O10: 8 | Q10: Mean: for 1/2 hourly and daily periods calculate mean of values across all operational combustion lines for the month
A11: May | B11: 60 | C11: 6.5 | D11: 11 | E11: 10 | F11: 6.5 | G11: 9 | K11: May | L11: 6 | M11: 11 | N11: 6 | O11: 8
A12: Jun | B12: 60 | C12: 5.5 | D12: 10 | E12: 10 | F12: 5.5 | G12: 8 | K12: Jun | L12: 5 | M12: 9 | N12: 5 | O12: 7
A13: Jul | B13: 60 | C13: 6.5 | D13: 12 | E13: 10 | F13: 6.5 | G13: 9 | K13: Jul | L13: 6 | M13: 10 | N13: 6 | O13: 8 | Q13: Maximum: for 1/2 hourly and daily periods use the highest value across all operational combustion lines for the month
A14: Aug | B14: 60 | C14: 6.5 | D14: 16 | E14: 10 | F14: 6.5 | G14: 9 | K14: Aug | L14: 5 | M14: 9 | N14: 5 | O14: 8
A15: Sep | B15: 60 | C15: 5 | D15: 12 | E15: 10 | F15: 5 | G15: 9 | K15: Sep
A16: Oct | B16: 60 | C16: 7 | D16: 12 | E16: 10 | F16: 7 | G16: 9 | K16: Oct
A17: Nov | B17: 60 | C17: 2 | D17: 5 | E17: 10 | F17: 2 | G17: 3 | K17: Nov | L17: 2 | M17: 5 | N17: 2 | O17: 3
A18: Dec | B18: 60 | C18: 2.5 | D18: 17 | E18: 10 | F18: 2.5 | G18: 5 | K18: Dec | L18: 3 | M18: 17 | N18: 3 | O18: 5
K19: Annual | L19: =AVERAGE(L7:L18) -> 5.1 | M19: =MAX(M7:M18) -> 27 | N19: =AVERAGE(N7:N18) -> 5.1 | O19: =MAX(O7:O18) -> 8
J21: =+A6 -> 2022 | K21: mg/Nm3 | L21: Monthly 1/2 hourly mean | M21: Monthly 1/2 hourly maximum | N21: Monthly daily mean | O21: Monthly daily maximum
J22: A2 | K22: Jan | L22: 5 | M22: 28 | N22: 5 | O22: 8
K23: Feb | L23: 7 | M23: 36 | N23: 7 | O23: 8
K24: Mar | L24: 7 | M24: 14 | N24: 7 | O24: 9
K25: Apr | L25: 8 | M25: 13 | N25: 8 | O25: 9
K26: May | L26: 7 | M26: 11 | N26: 7 | O26: 9
K27: Jun | L27: 6 | M27: 10 | N27: 6 | O27: 8
K28: Jul | L28: 7 | M28: 12 | N28: 7 | O28: 9
K29: Aug | L29: 8 | M29: 16 | N29: 8 | O29: 9
K30: Sep | L30: 5 | M30: 12 | N30: 5 | O30: 9
K31: Oct | L31: 7 | M31: 12 | N31: 7 | O31: 9
K32: Nov
K33: Dec | L33: 2 | M33: 5 | N33: 2 | O33: 5
K34: Annual | L34: =AVERAGE(L22:L33) -> 6.272727273 | M34: =MAX(M22:M33) -> 36 | N34: =AVERAGE(N22:N33) -> 6.272727273 | O34: =MAX(O22:O33) -> 9
J36: =+A6 -> 2022 | K36: mg/Nm3 | L36: Monthly 1/2 hourly mean | M36: Monthly 1/2 hourly maximum | N36: Monthly daily mean | O36: Monthly daily maximum
J37: A3 | K37: Jan
K38: Feb
K39: Mar
K40: Apr
K41: May
K42: Jun
K43: Jul
K44: Aug
K45: Sep
K46: Oct
K47: Nov
A48: Comments : | K48: Dec
K49: Annual | L49: =AVERAGE(L37:L48) ->  | M49: =MAX(M37:M48) -> 0 | N49: =AVERAGE(N37:N48) ->  | O49: =MAX(O37:O48) -> 0
J51: =+A6 -> 2022 | K51: mg/Nm3 | L51: Monthly 1/2 hourly mean | M51: Monthly 1/2 hourly maximum | N51: Monthly daily mean | O51: Monthly daily maximum
J52: A4 | K52: Jan
K53: Feb
K54: Mar
K55: Apr
K56: May
K57: Jun
K58: Jul
K59: Aug
K60: Sep
K61: Oct
K62: Nov
K63: Dec
K64: Annual | L64: =AVERAGE(L52:L63) ->  | M64: =MAX(M52:M63) -> 0 | N64: =AVERAGE(N52:N63) ->  | O64: =MAX(O52:O63) -> 0
J66: =+A6 -> 2022 | K66: mg/Nm3 | L66: Monthly 1/2 hourly mean | M66: Monthly 1/2 hourly maximum | N66: Monthly daily mean | O66: Monthly daily maximum
J67: A5 | K67: Jan
K68: Feb
K69: Mar
K70: Apr
K71: May
K72: Jun
K73: Jul
K74: Aug
K75: Sep
K76: Oct
K77: Nov
K78: Dec
K79: Annual | L79: =AVERAGE(L67:L78) ->  | M79: =MAX(M67:M78) -> 0 | N79: =AVERAGE(N67:N78) ->  | O79: =MAX(O67:O78) -> 0

Sheet SO2
A1: =+'Cover Page'!$B$29 -> Annual Performance Report 2022 | E1: =+'Cover Page'!$B$33 -> SUEZ R&R Wilton 11 EfW
A3: Monitoring of Sulphur dioxide emissions | D3: Whole Installation | G3: See Notes in Cell Q3 | J3: =+A3 -> Monitoring of Sulphur dioxide emissions | N3: Per Combustion Line | Q3: Notes:
Q4: User to add logic to complete Whole installation, Table A5:G18. From the data in Per Combustion Line, Table J6:O79, subject to No. of lines installed
A5: mg/Nm3 | B5: 1/2 Hourly Reference Periods | E5: Daily Reference Periods
A6: =+'Cover Page'!C39 -> 2022 | B6: 1/2 hourly SO2 ELV | C6: Monthly 1/2 hourly mean | D6: Highest 1/2 hourly maximum | E6: Daily SO2 ELV | F6: Monthly daily mean | G6: Highest daily maximum | J6: =+A6 -> 2022 | K6: mg/Nm3 | L6: Monthly 1/2 hourly mean | M6: Monthly 1/2 hourly maximum | N6: Monthly daily mean | O6: Monthly daily maximum
A7: Jan | B7: 200 | C7: =AVERAGE(L7,L22) -> 23.5 | D7: =MAX(M7,M22) -> 70 | E7: 50 | F7: =AVERAGE(N7,N22) -> 23.5 | G7: =MAX(O7,O22) -> 34 | J7: A1 | K7: Jan | L7: 21 | M7: 70 | N7: 21 | O7: 34
A8: Feb | B8: 200 | C8: =AVERAGE(L8,L23) -> 29 | D8: =MAX(M8,M23) -> 155 | E8: 50 | F8: =AVERAGE(N8,N23) -> 29 | G8: =MAX(O8,O23) -> 34 | K8: Feb | L8: 27 | M8: 48 | N8: 27 | O8: 33
A9: Mar | B9: 200 | C9: 27 | D9: 142 | E9: 50 | F9: 27 | G9: 39 | K9: Mar | L9: 25 | M9: 55 | N9: 25 | O9: 35 | Q9: Whole Installation table A5:G18:
A10: Apr | B10: 200 | C10: 23.5 | D10: 52 | E10: 50 | F10: 23.5 | G10: 33 | K10: Apr | L10: 19 | M10: 52 | N10: 19 | O10: 27 | Q10: Mean: for 1/2 hourly and daily periods calculate mean of values across all operational combustion lines for the month
A11: May | B11: 200 | C11: 29 | D11: 60 | E11: 50 | F11: 29 | G11: 43 | K11: May | L11: 26 | M11: 60 | N11: 26 | O11: 40
A12: Jun | B12: 200 | C12: 27.5 | D12: 86 | E12: 50 | F12: 27.5 | G12: 44 | K12: Jun | L12: 27 | M12: 71 | N12: 27 | O12: 44
A13: Jul | B13: 200 | C13: 27 | D13: 85 | E13: 50 | F13: 27 | G13: 39 | K13: Jul | L13: 27 | M13: 60 | N13: 27 | O13: 39 | Q13: Maximum: for 1/2 hourly and daily periods use the highest value across all operational combustion lines for the month
A14: Aug | B14: 200 | C14: 26 | D14: 159 | E14: 50 | F14: 26 | G14: 37 | K14: Aug | L14: 25 | M14: 159 | N14: 25 | O14: 37
A15: Sep | B15: 200 | C15: 20 | D15: 46 | E15: 50 | F15: 20 | G15: 29 | K15: Sep
A16: Oct | B16: 200 | C16: 22 | D16: 62 | E16: 50 | F16: 22 | G16: 35 | K16: Oct
A17: Nov | B17: 200 | C17: 32 | D17: 84 | E17: 50 | F17: 32 | G17: 43 | K17: Nov | L17: 32 | M17: 84 | N17: 32 | O17: 43
A18: Dec | B18: 200 | C18: 32 | D18: 59 | E18: 50 | F18: 32 | G18: 42 | K18: Dec | L18: 35 | M18: 55 | N18: 35 | O18: 42
K19: Annual | L19: =AVERAGE(L7:L18) -> 26.4 | M19: =MAX(M7:M18) -> 159 | N19: =AVERAGE(N7:N18) -> 26.4 | O19: =MAX(O7:O18) -> 44
J21: =+A6 -> 2022 | K21: mg/Nm3 | L21: Monthly 1/2 hourly mean | M21: Monthly 1/2 hourly maximum | N21: Monthly daily mean | O21: Monthly daily maximum
J22: A2 | K22: Jan | L22: 26 | M22: 56 | N22: 26 | O22: 33
K23: Feb | L23: 31 | M23: 155 | N23: 31 | O23: 34
K24: Mar | L24: 29 | M24: 142 | N24: 29 | O24: 39
K25: Apr | L25: 28 | M25: 46 | N25: 28 | O25: 33
K26: May | L26: 32 | M26: 58 | N26: 32 | O26: 43
K27: Jun | L27: 28 | M27: 86 | N27: 28 | O27: 40
K28: Jul | L28: 27 | M28: 85 | N28: 27 | O28: 34
K29: Aug | L29: 27 | M29: 89 | N29: 27 | O29: 36
K30: Sep | L30: 20 | M30: 46 | N30: 20 | O30: 29
K31: Oct | L31: 22 | M31: 62 | N31: 22 | O31: 35
K32: Nov
K33: Dec | L33: 29 | M33: 59 | N33: 29 | O33: 39
K34: Annual | L34: =AVERAGE(L22:L33) -> 27.18181818 | M34: =MAX(M22:M33) -> 155 | N34: =AVERAGE(N22:N33) -> 27.18181818 | O34: =MAX(O22:O33) -> 43
J36: =+A6 -> 2022 | K36: mg/Nm3 | L36: Monthly 1/2 hourly mean | M36: Monthly 1/2 hourly maximum | N36: Monthly daily mean | O36: Monthly daily maximum
J37: A3 | K37: Jan
K38: Feb
K39: Mar
K40: Apr
K41: May
K42: Jun
K43: Jul
K44: Aug
K45: Sep
K46: Oct
K47: Nov
A48: Comments : | K48: Dec
K49: Annual | L49: =AVERAGE(L37:L48) ->  | M49: =MAX(M37:M48) -> 0 | N49: =AVERAGE(N37:N48) ->  | O49: =MAX(O37:O48) -> 0
J51: =+A6 -> 2022 | K51: mg/Nm3 | L51: Monthly 1/2 hourly mean | M51: Monthly 1/2 hourly maximum | N51: Monthly daily mean | O51: Monthly daily maximum
J52: A4 | K52: Jan
K53: Feb
K54: Mar
K55: Apr
K56: May
K57: Jun
K58: Jul
K59: Aug
K60: Sep
K61: Oct
K62: Nov
K63: Dec
K64: Annual | L64: =AVERAGE(L52:L63) ->  | M64: =MAX(M52:M63) -> 0 | N64: =AVERAGE(N52:N63) ->  | O64: =MAX(O52:O63) -> 0
J66: =+A6 -> 2022 | K66: mg/Nm3 | L66: Monthly 1/2 hourly mean | M66: Monthly 1/2 hourly maximum | N66: Monthly daily mean | O66: Monthly daily maximum
J67: A5 | K67: Jan
K68: Feb
K69: Mar
K70: Apr
K71: May
K72: Jun
K73: Jul
K74: Aug
K75: Sep
K76: Oct
K77: Nov
K78: Dec
K79: Annual | L79: =AVERAGE(L67:L78) ->  | M79: =MAX(M67:M78) -> 0 | N79: =AVERAGE(N67:N78) ->  | O79: =MAX(O67:O78) -> 0

Sheet NOx
A1: =+'Cover Page'!$B$29 -> Annual Performance Report 2022 | E1: =+'Cover Page'!$B$33 -> SUEZ R&R Wilton 11 EfW
A3: Monitoring of Oxides of Nitrogen emissions | D3: Whole Installation | G3: See Notes in Cell Q3 | J3: =+A3 -> Monitoring of Oxides of Nitrogen emissions | N3: Per Combustion Line | Q3: Notes:
Q4: User to add logic to complete Whole installation, Table A5:G18. From the data in Per Combustion Line, Table J6:O79, subject to No. of lines installed
A5: mg/Nm3 | B5: 1/2 Hourly Reference Periods | E5: Daily Reference Periods
A6: =+'Cover Page'!C39 -> 2022 | B6: 1/2 hourly NOx ELV | C6: Monthly 1/2 hourly mean | D6: Highest 1/2 hourly maximum | E6: Daily NOx ELV | F6: Monthly daily mean | G6: Highest daily maximum | J6: =+A6 -> 2022 | K6: mg/Nm3 | L6: Monthly 1/2 hourly mean | M6: Monthly 1/2 hourly maximum | N6: Monthly daily mean | O6: Monthly daily maximum
A7: Jan | B7: 400 | C7: =AVERAGE(L7,L22) -> 171 | D7: =MAX(M7,M22) -> 294 | E7: 200 | F7: =AVERAGE(N7,N22) -> 171 | G7: =MAX(O7,O22) -> 177 | J7: A1 | K7: Jan | L7: 168 | M7: 203 | N7: 168 | O7: 170
A8: Feb | B8: 400 | C8: =AVERAGE(L8,L23) -> 171 | D8: =MAX(M8,M23) -> 253 | E8: 200 | F8: =AVERAGE(N8,N23) -> 171 | G8: =MAX(O8,O23) -> 175 | K8: Feb | L8: 169 | M8: 253 | N8: 169 | O8: 175
A9: Mar | B9: 400 | C9: 171.5 | D9: 202 | E9: 200 | F9: 171.5 | G9: 176 | K9: Mar | L9: 170 | M9: 200 | N9: 170 | O9: 171
A10: Apr | B10: 400 | C10: 174 | D10: 323 | E10: 200 | F10: 174 | G10: 191 | K10: Apr | L10: 172 | M10: 249 | N10: 172 | O10: 188 | Q10: Mean: for 1/2 hourly and daily periods calculate mean of values across all operational combustion lines for the month
A11: May | B11: 400 | C11: 173 | D11: 274 | E11: 200 | F11: 173 | G11: 189 | K11: May | L11: 169 | M11: 206 | N11: 169 | O11: 173
A12: Jun | B12: 400 | C12: 169 | D12: 258 | E12: 200 | F12: 169 | G12: 178 | K12: Jun | L12: 164 | M12: 258 | N12: 164 | O12: 172
A13: Jul | B13: 400 | C13: 173.5 | D13: 276 | E13: 200 | F13: 173.5 | G13: 194 | K13: Jul | L13: 174 | M13: 276 | N13: 174 | O13: 194 | Q13: Maximum: for 1/2 hourly and daily periods use the highest value across all operational combustion lines for the month
A14: Aug | B14: 400 | C14: 167.5 | D14: 239 | E14: 200 | F14: 167.5 | G14: 188 | K14: Aug | L14: 162 | M14: 239 | N14: 162 | O14: 188
A15: Sep | B15: 400 | C15: 167 | D15: 265 | E15: 200 | F15: 167 | G15: 174 | K15: Sep
A16: Oct | B16: 400 | C16: 165 | D16: 204 | E16: 200 | F16: 165 | G16: 166 | K16: Oct
A17: Nov | B17: 400 | C17: 154 | D17: 192 | E17: 200 | F17: 154 | G17: 158 | K17: Nov | L17: 154 | M17: 192 | N17: 154 | O17: 158
A18: Dec | B18: 400 | C18: 159.5 | D18: 395 | E18: 200 | F18: 159.5 | G18: 177 | K18: Dec | L18: 155 | M18: 395 | N18: 155 | O18: 177
K19: Annual | L19: =AVERAGE(L7:L18) -> 165.7 | M19: =MAX(M7:M18) -> 395 | N19: =AVERAGE(N7:N18) -> 165.7 | O19: =MAX(O7:O18) -> 194
J21: =+A6 -> 2022 | K21: mg/Nm3 | L21: Monthly 1/2 hourly mean | M21: Monthly 1/2 hourly maximum | N21: Monthly daily mean | O21: Monthly daily maximum
J22: A2 | K22: Jan | L22: 174 | M22: 294 | N22: 174 | O22: 177
K23: Feb | L23: 173 | M23: 223 | N23: 173 | O23: 175
K24: Mar | L24: 173 | M24: 202 | N24: 173 | O24: 176
K25: Apr | L25: 176 | M25: 323 | N25: 176 | O25: 191
K26: May | L26: 177 | M26: 274 | N26: 177 | O26: 189
K27: Jun | L27: 174 | M27: 224 | N27: 174 | O27: 178
K28: Jul | L28: 173 | M28: 203 | N28: 173 | O28: 174
K29: Aug | L29: 173 | M29: 230 | N29: 173 | O29: 181
K30: Sep | L30: 167 | M30: 265 | N30: 167 | O30: 174
K31: Oct | L31: 165 | M31: 204 | N31: 165 | O31: 166
K32: Nov
K33: Dec | L33: 164 | M33: 197 | N33: 164 | O33: 165
K34: Annual | L34: =AVERAGE(L22:L33) -> 171.7272727 | M34: =MAX(M22:M33) -> 323 | N34: =AVERAGE(N22:N33) -> 171.7272727 | O34: =MAX(O22:O33) -> 191
J36: =+A6 -> 2022 | K36: mg/Nm3 | L36: Monthly 1/2 hourly mean | M36: Monthly 1/2 hourly maximum | N36: Monthly daily mean | O36: Monthly daily maximum
J37: A3 | K37: Jan
K38: Feb
K39: Mar
K40: Apr
K41: May
K42: Jun
K43: Jul
K44: Aug
K45: Sep
K46: Oct
K47: Nov
A48: Comments : | K48: Dec
K49: Annual | L49: =AVERAGE(L37:L48) ->  | M49: =MAX(M37:M48) -> 0 | N49: =AVERAGE(N37:N48) ->  | O49: =MAX(O37:O48) -> 0
J51: =+A6 -> 2022 | K51: mg/Nm3 | L51: Monthly 1/2 hourly mean | M51: Monthly 1/2 hourly maximum | N51: Monthly daily mean | O51: Monthly daily maximum
J52: A4 | K52: Jan
K53: Feb
K54: Mar
K55: Apr
K56: May
K57: Jun
K58: Jul
K59: Aug
K60: Sep
K61: Oct
K62: Nov
K63: Dec
K64: Annual | L64: =AVERAGE(L52:L63) ->  | M64: =MAX(M52:M63) -> 0 | N64: =AVERAGE(N52:N63) ->  | O64: =MAX(O52:O63) -> 0
J66: =+A6 -> 2022 | K66: mg/Nm3 | L66: Monthly 1/2 hourly mean | M66: Monthly 1/2 hourly maximum | N66: Monthly daily mean | O66: Monthly daily maximum
J67: A5 | K67: Jan
K68: Feb
K69: Mar
K70: Apr
K71: May
K72: Jun
K73: Jul
K74: Aug
K75: Sep
K76: Oct
K77: Nov
K78: Dec
K79: Annual | L79: =AVERAGE(L67:L78) ->  | M79: =MAX(M67:M78) -> 0 | N79: =AVERAGE(N67:N78) ->  | O79: =MAX(O67:O78) -> 0

Sheet TOC
A1: =+'Cover Page'!$B$29 -> Annual Performance Report 2022 | E1: =+'Cover Page'!$B$33 -> SUEZ R&R Wilton 11 EfW
A3: Monitoring of Total organic carbon emissions | D3: Whole Installation | G3: See Notes in Cell Q3 | J3: =+A3 -> Monitoring of Total organic carbon emissions | N3: Per Combustion Line | Q3: Notes:
Q4: User to add logic to complete Whole installation, Table A5:G18. From the data in Per Combustion Line, Table J6:O79, subject to No. of lines installed
A5: mg/Nm3 | B5: 1/2 Hourly Reference Periods | E5: Daily Reference Periods
A6: =+'Cover Page'!C39 -> 2022 | B6: 1/2 hourly TOC ELV | C6: Monthly 1/2 hourly mean | D6: Highest 1/2 hourly maximum | E6: Daily TOC ELV | F6: Monthly daily mean | G6: Highest daily maximum | J6: =+A6 -> 2022 | K6: mg/Nm3 | L6: Monthly 1/2 hourly mean | M6: Monthly 1/2 hourly maximum | N6: Monthly daily mean | O6: Monthly daily maximum
A7: Jan | B7: 20 | C7: =AVERAGE(L7,L22) -> 0.55 | D7: =MAX(M7,M22) -> 97 | E7: 10 | F7: =AVERAGE(N7,N22) -> 0.55 | G7: =MAX(O7,O22) -> 2.5 | J7: A1 | K7: Jan | L7: 0.6 | M7: 2.1 | N7: 0.6 | O7: 0.6
A8: Feb | B8: 20 | C8: =AVERAGE(L8,L23) -> 0.5 | D8: =MAX(M8,M23) -> 1.6 | E8: 10 | F8: =AVERAGE(N8,N23) -> 0.5 | G8: =MAX(O8,O23) -> 0.6 | K8: Feb | L8: 0.6 | M8: 1.6 | N8: 0.6 | O8: 0.6
A9: Mar | B9: 20 | C9: 0.5 | D9: 1.4 | E9: 10 | F9: 0.5 | G9: 0.6 | K9: Mar | L9: 0.6 | M9: 1.2 | N9: 0.6 | O9: 0.6 | Q9: Whole Installation table A5:G18:
A10: Apr | B10: 20 | C10: 0.5 | D10: 2.4 | E10: 10 | F10: 0.5 | G10: 0.6 | K10: Apr | L10: 0.6 | M10: 2.4 | N10: 0.6 | O10: 0.6 | Q10: Mean: for 1/2 hourly and daily periods calculate mean of values across all operational combustion lines for the month
A11: May | B11: 20 | C11: 0.55 | D11: 6.7 | E11: 10 | F11: 0.55 | G11: 1 | K11: May | L11: 0.7 | M11: 6.7 | N11: 0.7 | O11: 1
A12: Jun | B12: 20 | C12: 0.55 | D12: 4.5 | E12: 10 | F12: 0.55 | G12: 0.7 | K12: Jun | L12: 0.6 | M12: 4.5 | N12: 0.6 | O12: 0.7
A13: Jul | B13: 20 | C13: 0.75 | D13: 6.8 | E13: 10 | F13: 0.75 | G13: 3.9 | K13: Jul | L13: 0.6 | M13: 2.1 | N13: 0.6 | O13: 0.7 | Q13: Maximum: for 1/2 hourly and daily periods use the highest value across all operational combustion lines for the month
A14: Aug | B14: 20 | C14: 0.55 | D14: 3.4 | E14: 10 | F14: 0.55 | G14: 1 | K14: Aug | L14: 0.6 | M14: 3.4 | N14: 0.6 | O14: 0.9
A15: Sep | B15: 20 | C15: 0.5 | D15: 2.3 | E15: 10 | F15: 0.5 | G15: 0.5 | K15: Sep
A16: Oct | B16: 20 | C16: 0.5 | D16: 1.7 | E16: 10 | F16: 0.5 | G16: 0.5 | K16: Oct
A17: Nov | B17: 20 | C17: 0.6 | D17: 1.3 | E17: 10 | F17: 0.6 | G17: 0.6 | K17: Nov | L17: 0.6 | M17: 1.3 | N17: 0.6 | O17: 0.6
A18: Dec | B18: 20 | C18: 0.25 | D18: 1.5 | E18: 10 | F18: 0.25 | G18: 0.8 | K18: Dec | L18: 0 | M18: 1.5 | N18: 0 | O18: 0.8
K19: Annual | L19: =AVERAGE(L7:L18) -> 0.55 | M19: =MAX(M7:M18) -> 6.7 | N19: =AVERAGE(N7:N18) -> 0.55 | O19: =MAX(O7:O18) -> 1
J21: =+A6 -> 2022 | K21: mg/Nm3 | L21: Monthly 1/2 hourly mean | M21: Monthly 1/2 hourly maximum | N21: Monthly daily mean | O21: Monthly daily maximum
J22: A2 | K22: Jan | L22: 0.5 | M22: 97 | N22: 0.5 | O22: 2.5
K23: Feb | L23: 0.4 | M23: 1.5 | N23: 0.4 | O23: 0.5
K24: Mar | L24: 0.4 | M24: 1.4 | N24: 0.4 | O24: 0.5
K25: Apr | L25: 0.4 | M25: 1.5 | N25: 0.4 | O25: 0.5
K26: May | L26: 0.4 | M26: 3.5 | N26: 0.4 | O26: 0.5
K27: Jun | L27: 0.5 | M27: 1.5 | N27: 0.5 | O27: 0.7
K28: Jul | L28: 0.9 | M28: 6.8 | N28: 0.9 | O28: 3.9
K29: Aug | L29: 0.5 | M29: 2.8 | N29: 0.5 | O29: 1
K30: Sep | L30: 0.5 | M30: 2.3 | N30: 0.5 | O30: 0.5
K31: Oct | L31: 0.5 | M31: 1.7 | N31: 0.5 | O31: 0.5
K32: Nov
K33: Dec | L33: 0.5 | M33: 1.1 | N33: 0.5 | O33: 0.5
K34: Annual | L34: =AVERAGE(L22:L33) -> 0.5 | M34: =MAX(M22:M33) -> 97 | N34: =AVERAGE(N22:N33) -> 0.5 | O34: =MAX(O22:O33) -> 3.9
J36: =+A6 -> 2022 | K36: mg/Nm3 | L36: Monthly 1/2 hourly mean | M36: Monthly 1/2 hourly maximum | N36: Monthly daily mean | O36: Monthly daily maximum
J37: A3 | K37: Jan
K38: Feb
K39: Mar
K40: Apr
K41: May
K42: Jun
K43: Jul
K44: Aug
K45: Sep
K46: Oct
K47: Nov
A48: Comments : | K48: Dec
K49: Annual | L49: =AVERAGE(L37:L48) ->  | M49: =MAX(M37:M48) -> 0 | N49: =AVERAGE(N37:N48) ->  | O49: =MAX(O37:O48) -> 0
J51: =+A6 -> 2022 | K51: mg/Nm3 | L51: Monthly 1/2 hourly mean | M51: Monthly 1/2 hourly maximum | N51: Monthly daily mean | O51: Monthly daily maximum
J52: A4 | K52: Jan
K53: Feb
K54: Mar
K55: Apr
K56: May
K57: Jun
K58: Jul
K59: Aug
K60: Sep
K61: Oct
K62: Nov
K63: Dec
K64: Annual | L64: =AVERAGE(L52:L63) ->  | M64: =MAX(M52:M63) -> 0 | N64: =AVERAGE(N52:N63) ->  | O64: =MAX(O52:O63) -> 0
J66: =+A6 -> 2022 | K66: mg/Nm3 | L66: Monthly 1/2 hourly mean | M66: Monthly 1/2 hourly maximum | N66: Monthly daily mean | O66: Monthly daily maximum
J67: A5 | K67: Jan
K68: Feb
K69: Mar
K70: Apr
K71: May
K72: Jun
K73: Jul
K74: Aug
K75: Sep
K76: Oct
K77: Nov
K78: Dec
K79: Annual | L79: =AVERAGE(L67:L78) ->  | M79: =MAX(M67:M78) -> 0 | N79: =AVERAGE(N67:N78) ->  | O79: =MAX(O67:O78) -> 0

Sheet Particulates
A1: =+'Cover Page'!$B$29 -> Annual Performance Report 2022 | E1: =+'Cover Page'!$B$33 -> SUEZ R&R Wilton 11 EfW
A3: Monitoring of Particulate matter emissions | D3: Whole Installation | G3: See Notes in Cell Q3 | J3: =+A3 -> Monitoring of Particulate matter emissions | N3: Per Combustion Line | Q3: Notes:
Q4: User to add logic to complete Whole installation, Table A5:G18. From the data in Per Combustion Line, Table J6:O79, subject to No. of lines installed
A5: mg/Nm3 | B5: 1/2 Hourly Reference Periods | E5: Daily Reference Periods
A6: =+'Cover Page'!C39 -> 2022 | B6: 1/2 hourly PM ELV | C6: Monthly 1/2 hourly mean | D6: Highest 1/2 hourly maximum | E6: Daily PM ELV | F6: Monthly daily mean | G6: Highest daily maximum | J6: =+A6 -> 2022 | K6: mg/Nm3 | L6: Monthly 1/2 hourly mean | M6: Monthly 1/2 hourly maximum | N6: Monthly daily mean | O6: Monthly daily maximum
A7: Jan | B7: 30 | C7: =AVERAGE(L7,L22) -> 0.4 | D7: =MAX(M7,M22) -> 1.7 | E7: 10 | F7: =AVERAGE(N7,N22) -> 0.4 | G7: =MAX(O7,O22) -> 0.5 | J7: A1 | K7: Jan | L7: 0.4 | M7: 0.6 | N7: 0.4 | O7: 0.5
A8: Feb | B8: 30 | C8: =AVERAGE(L8,L23) -> 0.4 | D8: =MAX(M8,M23) -> 0.6 | E8: 10 | F8: =AVERAGE(N8,N23) -> 0.4 | G8: =MAX(O8,O23) -> 0.5 | K8: Feb | L8: 0.4 | M8: 0.5 | N8: 0.4 | O8: 0.5
A9: Mar | B9: 30 | C9: 0.4 | D9: 0.6 | E9: 10 | F9: 0.4 | G9: 0.5 | K9: Mar | L9: 0.4 | M9: 0.6 | N9: 0.4 | O9: 0.5 | Q9: Whole Installation table A5:G18:
A10: Apr | B10: 30 | C10: 0.45 | D10: 6.2 | E10: 10 | F10: 0.45 | G10: 0.5 | K10: Apr | L10: 0.5 | M10: 6.2 | N10: 0.5 | O10: 0.5 | Q10: Mean: for 1/2 hourly and daily periods calculate mean of values across all operational combustion lines for the month
A11: May | B11: 30 | C11: 0.45 | D11: 1.1 | E11: 10 | F11: 0.45 | G11: 0.5 | K11: May | L11: 0.5 | M11: 1.1 | N11: 0.5 | O11: 0.5
A12: Jun | B12: 30 | C12: 0.4 | D12: 0.8 | E12: 10 | F12: 0.4 | G12: 0.5 | K12: Jun | L12: 0.4 | M12: 0.8 | N12: 0.4 | O12: 0.5
A13: Jul | B13: 30 | C13: 0.45 | D13: 0.7 | E13: 10 | F13: 0.45 | G13: 0.6 | K13: Jul | L13: 0.5 | M13: 0.7 | N13: 0.5 | O13: 0.6 | Q13: Maximum: for 1/2 hourly and daily periods use the highest value across all operational combustion lines for the month
A14: Aug | B14: 30 | C14: 0.45 | D14: 4.8 | E14: 10 | F14: 0.45 | G14: 0.6 | K14: Aug | L14: 0.5 | M14: 4.8 | N14: 0.5 | O14: 0.6
A15: Sep | B15: 30 | C15: 0.4 | D15: 0.7 | E15: 10 | F15: 0.4 | G15: 0.4 | K15: Sep
A16: Oct | B16: 30 | C16: 0.4 | D16: 0.6 | E16: 10 | F16: 0.4 | G16: 0.4 | K16: Oct
A17: Nov | B17: 30 | C17: 0.6 | D17: 4.9 | E17: 10 | F17: 0.6 | G17: 1.1 | K17: Nov | L17: 0.6 | M17: 4.9 | N17: 0.6 | O17: 1.1
A18: Dec | B18: 30 | C18: 0.9 | D18: 4.7 | E18: 10 | F18: 0.9 | G18: 1.7 | K18: Dec | L18: 1.4 | M18: 4.7 | N18: 1.4 | O18: 1.7
K19: Annual | L19: =AVERAGE(L7:L18) -> 0.56 | M19: =MAX(M7:M18) -> 6.2 | N19: =AVERAGE(N7:N18) -> 0.56 | O19: =MAX(O7:O18) -> 1.7
J21: =+A6 -> 2022 | K21: mg/Nm3 | L21: Monthly 1/2 hourly mean | M21: Monthly 1/2 hourly maximum | N21: Monthly daily mean | O21: Monthly daily maximum
J22: A2 | K22: Jan | L22: 0.4 | M22: 1.7 | N22: 0.4 | O22: 0.5
K23: Feb | L23: 0.4 | M23: 0.6 | N23: 0.4 | O23: 0.4
K24: Mar | L24: 0.4 | M24: 0.6 | N24: 0.4 | O24: 0.4
K25: Apr | L25: 0.4 | M25: 4.1 | N25: 0.4 | O25: 0.4
K26: May | L26: 0.4 | M26: 0.6 | N26: 0.4 | O26: 0.4
K27: Jun | L27: 0.4 | M27: 0.5 | N27: 0.4 | O27: 0.4
K28: Jul | L28: 0.4 | M28: 0.6 | N28: 0.4 | O28: 0.4
K29: Aug | L29: 0.4 | M29: 0.7 | N29: 0.4 | O29: 0.4
K30: Sep | L30: 0.4 | M30: 0.7 | N30: 0.4 | O30: 0.4
K31: Oct | L31: 0.4 | M31: 0.6 | N31: 0.4 | O31: 0.4
K32: Nov
K33: Dec | L33: 0.4 | M33: 0.6 | N33: 0.4 | O33: 0.4
K34: Annual | L34: =AVERAGE(L22:L33) -> 0.4 | M34: =MAX(M22:M33) -> 4.1 | N34: =AVERAGE(N22:N33) -> 0.4 | O34: =MAX(O22:O33) -> 0.5
J36: =+A6 -> 2022 | K36: mg/Nm3 | L36: Monthly 1/2 hourly mean | M36: Monthly 1/2 hourly maximum | N36: Monthly daily mean | O36: Monthly daily maximum
J37: A3 | K37: Jan
K38: Feb
K39: Mar
K40: Apr
K41: May
K42: Jun
K43: Jul
K44: Aug
K45: Sep
K46: Oct
K47: Nov
A48: Comments : | K48: Dec
K49: Annual | L49: =AVERAGE(L37:L48) ->  | M49: =MAX(M37:M48) -> 0 | N49: =AVERAGE(N37:N48) ->  | O49: =MAX(O37:O48) -> 0
J51: =+A6 -> 2022 | K51: mg/Nm3 | L51: Monthly 1/2 hourly mean | M51: Monthly 1/2 hourly maximum | N51: Monthly daily mean | O51: Monthly daily maximum
J52: A4 | K52: Jan
K53: Feb
K54: Mar
K55: Apr
K56: May
K57: Jun
K58: Jul
K59: Aug
K60: Sep
K61: Oct
K62: Nov
K63: Dec
K64: Annual | L64: =AVERAGE(L52:L63) ->  | M64: =MAX(M52:M63) -> 0 | N64: =AVERAGE(N52:N63) ->  | O64: =MAX(O52:O63) -> 0
J66: =+A6 -> 2022 | K66: mg/Nm3 | L66: Monthly 1/2 hourly mean | M66: Monthly 1/2 hourly maximum | N66: Monthly daily mean | O66: Monthly daily maximum
J67: A5 | K67: Jan
K68: Feb
K69: Mar
K70: Apr
K71: May
K72: Jun
K73: Jul
K74: Aug
K75: Sep
K76: Oct
K77: Nov
K78: Dec
K79: Annual | L79: =AVERAGE(L67:L78) ->  | M79: =MAX(M67:M78) -> 0 | N79: =AVERAGE(N67:N78) ->  | O79: =MAX(O67:O78) -> 0

Sheet CO 95% 10 min
A1: =+'Cover Page'!$B$29 -> Annual Performance Report 2022 | E1: =+'Cover Page'!$B$33 -> SUEZ R&R Wilton 11 EfW
A3: Monitoring of Carbon Monoxide (10-minute avg) | E3: Whole Installation | H3: See Notes in Cell S3 | J3: =+A3 -> Monitoring of Carbon Monoxide (10-minute avg) | O3: Per Combustion Line | Q3: Notes: | S3: Notes:
S4: User to add logic to complete Whole installation, Table A5:H18. From the data in Per Combustion Line, Table K6:Q79, subject to No. of lines installed
A5: mg/Nm3 | B5: 10-minute Reference Periods | F5: Daily Reference Periods
A6: =+'Cover Page'!C39 -> 2022 | B6: 95%ile 10-min avg CO ELV | C6: 95%ile 10-min avg maximum | D6: Monthly CO 10-min avg mean | E6: 10-min avg maximum | F6: Daily CO ELV | G6: Monthly daily mean | H6: Highest daily maximum | K6: =+A6 -> 2022 | L6: mg/Nm3 | M6: 95%ile 10-min avg maximum | N6: Monthly CO 10-min avg mean | O6: 10-min avg maximum | P6: Monthly daily mean | Q6: Monthly daily maximum
A7: Jan | B7: 150 | C7: =MAX(M7,M22) -> 8 | D7: =AVERAGE(N7,N22) -> 7.5 | E7: =MAX(O7,O22) -> 1600 | F7: 50 | G7: =AVERAGE(P7,P22) -> 7.5 | H7: =MAX(Q7,Q22) -> 42 | K7: A1 | L7: Jan | M7: 7 | N7: 8 | O7: 44 | P7: 8 | Q7: 9
A8: Feb | B8: =+B7 -> 150 | C8: =MAX(M8,M23) -> 11 | D8: =AVERAGE(N8,N23) -> 7 | E8: =MAX(O8,O23) -> 208 | F8: =+F7 -> 50 | G8: =AVERAGE(P8,P23) -> 7 | H8: =MAX(Q8,Q23) -> 10 | L8: Feb | M8: 7 | N8: 6 | O8: 208 | P8: 6 | Q8: 7
A9: Mar | B9: =+B8 -> 150 | C9: 12 | D9: 6.5 | E9: 167 | F9: =+F8 -> 50 | G9: 6.5 | H9: 9 | L9: Mar | M9: 12 | N9: 8 | O9: 167 | P9: 8 | Q9: 9 | S9: Whole Installation table A5:H18:
A10: Apr | B10: 150 | C10: 13 | D10: 7 | E10: 105 | F10: 50 | G10: 7 | H10: 10 | L10: Apr | M10: 13 | N10: 9 | O10: 105 | P10: 9 | Q10: 10 | S10: Mean: for 10-min and daily periods use average of all operational combustion lines.
A11: May | B11: 150 | C11: 9 | D11: 7 | E11: 166 | F11: 50 | G11: 7 | H11: 11 | L11: May | M11: 9 | N11: 9 | O11: 166 | P11: 9 | Q11: 11
A12: Jun | B12: 150 | C12: 14 | D12: 7 | E12: 157 | F12: 50 | G12: 7 | H12: 11 | L12: Jun | M12: 9 | N12: 5 | O12: 108 | P12: 5 | Q12: 6
A13: Jul | B13: 150 | C13: 9 | D13: 7 | E13: 993 | F13: 50 | G13: 7 | H13: 18 | L13: Jul | M13: 9 | N13: 9 | O13: 993 | P13: 9 | Q13: 18 | S13: Maximum: for 10-min and daily periods use the highest of all operational combustion lines in any month.
A14: Aug | B14: 150 | C14: 15 | D14: 10 | E14: 2903 | F14: 50 | G14: 10 | H14: 14 | L14: Aug | M14: 15 | N14: 15 | O14: 2903 | P14: 15 | Q14: 14
A15: Sep | B15: 150 | C15: 5 | D15: 5 | E15: 285 | F15: 50 | G15: 5 | H15: 7 | L15: Sep
A16: Oct | B16: 150 | C16: 5 | D16: 5 | E16: 200 | F16: 50 | G16: 5 | H16: 7 | L16: Oct
A17: Nov | B17: 150 | C17: 11 | D17: 11 | E17: 390 | F17: 50 | G17: 11 | H17: 12 | L17: Nov | M17: 11 | N17: 11 | O17: 390 | P17: 11 | Q17: 12
A18: Dec | B18: 150 | C18: 28 | D18: 7 | E18: 350 | F18: 50 | G18: 7 | H18: 14 | L18: Dec | M18: 28 | N18: 9 | O18: 350 | P18: 9 | Q18: 14
L19: Annual | M19: =AVERAGE(M7:M18) -> 12 | O19: =MAX(O7:O18) -> 2903 | P19: =AVERAGE(P7:P18) -> 8.9 | Q19: =MAX(Q7:Q18) -> 18
K21: =+A6 -> 2022 | L21: mg/Nm3 | M21: 95%ile 10-min avg maximum | N21: Monthly CO 10-min avg mean | O21: 10-min avg maximum | P21: Monthly daily mean | Q21: Monthly daily maximum
K22: A2 | L22: Jan | M22: 8 | N22: 7 | O22: 1600 | P22: 7 | Q22: 42
L23: Feb | M23: 11 | N23: 8 | O23: 182 | P23: 8 | Q23: 10
L24: Mar | M24: 8 | N24: 5 | O24: 49 | P24: 5 | Q24: 6
L25: Apr | M25: 7 | N25: 5 | O25: 72 | P25: 5 | Q25: 5
L26: May | M26: 5 | N26: 5 | O26: 123 | P26: 5 | Q26: 6
L27: Jun | M27: 14 | N27: 9 | O27: 157 | P27: 9 | Q27: 11
L28: Jul | M28: 5 | N28: 5 | O28: 504 | P28: 5 | Q28: 9
L29: Aug | M29: 5 | N29: 5 | O29: 239 | P29: 5 | Q29: 6
L30: Sep | M30: 5 | N30: 5 | O30: 285 | P30: 5 | Q30: 7
L31: Oct | M31: 5 | N31: 5 | O31: 200 | P31: 5 | Q31: 7
L32: Nov
L33: Dec | M33: 7 | N33: 5 | O33: 113 | P33: 5 | Q33: 7
L34: Annual | M34: =AVERAGE(M22:M33) -> 7.272727273 | O34: =MAX(O22:O33) -> 1600 | P34: =AVERAGE(P22:P33) -> 5.818181818 | Q34: =MAX(Q22:Q33) -> 42
K36: =+A6 -> 2022 | L36: mg/Nm3 | M36: 95%ile 10-min avg maximum | N36: Monthly CO 10-min avg mean | O36: 10-min avg maximum | P36: Monthly daily mean | Q36: Monthly daily maximum
K37: A3 | L37: Jan
L38: Feb
L39: Mar
L40: Apr
L41: May
L42: Jun
L43: Jul
L44: Aug
L45: Sep
L46: Oct
L47: Nov
A48: Comments : | L48: Dec
A49: Environment Agency explanatory note: The 10-minute average ELV is based on the “95th percentile”. In this case this means that 95% of the 10 minute averages in the relevant 24-hour period (i.e. 137) must be below 150 mg/Nm3, and 5% (i.e. 7) are allowed to be any value above 150 mg/Nm3. Whilst we expect operators to minimise CO emissions at all times, it is perfectly acceptable for the value of the maximum 10-minute average to be above 150 mg/Nm3, provided the 95th percentile ELV has been met for that period. | L49: Annual | M49: =AVERAGE(M37:M48) ->  | O49: =MAX(O37:O48) -> 0 | P49: =AVERAGE(P37:P48) ->  | Q49: =MAX(Q37:Q48) -> 0
K51: =+A6 -> 2022 | L51: mg/Nm3 | M51: 95%ile 10-min avg maximum | N51: Monthly CO 10-min avg mean | O51: 10-min avg maximum | P51: Monthly daily mean | Q51: Monthly daily maximum
K52: A4 | L52: Jan
L53: Feb
L54: Mar
L55: Apr
L56: May
L57: Jun
L58: Jul
L59: Aug
L60: Sep
L61: Oct
L62: Nov
L63: Dec
L64: Annual | M64: =AVERAGE(M52:M63) ->  | O64: =MAX(O52:O63) -> 0 | P64: =AVERAGE(P52:P63) ->  | Q64: =MAX(Q52:Q63) -> 0
K66: =+A6 -> 2022 | L66: mg/Nm3 | M66: 95%ile 10-min avg maximum | N66: Monthly CO 10-min avg mean | O66: 10-min avg maximum | P66: Monthly daily mean | Q66: Monthly daily maximum
K67: A5 | L67: Jan
L68: Feb
L69: Mar
L70: Apr
L71: May
L72: Jun
L73: Jul
L74: Aug
L75: Sep
L76: Oct
L77: Nov
L78: Dec
L79: Annual | M79: =AVERAGE(M67:M78) ->  | O79: =MAX(O67:O78) -> 0 | P79: =AVERAGE(P67:P78) ->  | Q79: =MAX(Q67:Q78) -> 0

Sheet NH3
A1: =+'Cover Page'!$B$29 -> Annual Performance Report 2022 | E1: =+'Cover Page'!$B$33 -> SUEZ R&R Wilton 11 EfW
A3: Monitoring of Ammnonia emissions | D3: Whole Installation | G3: See Notes in Cell Q3 | J3: =+A3 -> Monitoring of Ammnonia emissions | N3: Per Combustion Line | Q3: Notes:
Q4: User to add logic to complete Whole installation, Table A5:G18. From the data in Per Combustion Line, Table J6:O79, subject to No. of lines installed
A5: mg/Nm3 | B5: 1/2 Hourly Reference Periods | E5: Daily Reference Periods
A6: =+'Cover Page'!C39 -> 2022 | B6: 1/2 hourly NH3 ELV | C6: Monthly 1/2 hourly mean | D6: Highest 1/2 hourly maximum | E6: Daily NH3 ELV | F6: Monthly daily mean | G6: Highest daily maximum | J6: =+A6 -> 2022 | K6: mg/Nm3 | L6: Monthly 1/2 hourly mean | M6: Monthly 1/2 hourly maximum | N6: Monthly daily mean | O6: Monthly daily maximum
A7: Jan | B7: 0 | C7: =AVERAGE(L7,L22) -> 0 | D7: =MAX(M7,M22) -> 23 | E7: 10 | F7: =AVERAGE(N7,N22) -> 0 | G7: =MAX(O7,O22) -> 1 | J7: A1 | K7: Jan | L7: 0 | M7: 3 | N7: 0 | O7: 1
A8: Feb | B8: =+B7 -> 0 | C8: =AVERAGE(L8,L23) -> 0.5 | D8: =MAX(M8,M23) -> 3 | E8: =+E7 -> 10 | F8: =AVERAGE(N8,N23) -> 0.5 | G8: =MAX(O8,O23) -> 1 | K8: Feb | L8: 0 | M8: 2 | N8: 0 | O8: 1
A9: Mar | B9: =+B8 -> 0 | C9: =AVERAGE(L9,L24) -> 0 | D9: 4 | E9: =+E8 -> 10 | F9: 0 | G9: 1 | K9: Mar | L9: 0 | M9: 2 | N9: 0 | O9: 1 | Q9: Whole Installation table A5:G18:
A10: Apr | B10: 0 | C10: =AVERAGE(L10,L25) -> 0 | D10: 15 | E10: 10 | F10: 0 | G10: 1 | K10: Apr | L10: 0 | M10: 13 | N10: 0 | O10: 0 | Q10: Mean: for 1/2 hourly and daily periods calculate mean of values across all operational combustion lines for the month
A11: May | B11: 0 | C11: =AVERAGE(L11,L26) -> 0.5 | D11: 8 | E11: 10 | F11: 0.5 | G11: 1 | K11: May | L11: 0 | M11: 8 | N11: 0 | O11: 1
A12: Jun | B12: 0 | C12: =AVERAGE(L12,L27) -> 0 | D12: 9 | E12: 10 | F12: 0 | G12: 1 | K12: Jun | L12: 0 | M12: 9 | N12: 0 | O12: 0
A13: Jul | B13: 0 | C13: =AVERAGE(L13,L28) -> 0.5 | D13: 6 | E13: 10 | F13: 0.5 | G13: 2 | K13: Jul | L13: 0 | M13: 5 | N13: 0 | O13: 2 | Q13: Maximum: for 1/2 hourly and daily periods use the highest value across all operational combustion lines for the month
A14: Aug | B14: 0 | C14: =AVERAGE(L14,L29) -> 0.5 | D14: 7 | E14: 10 | F14: 0.5 | G14: 3 | K14: Aug | L14: 1 | M14: 7 | N14: 1 | O14: 3
A15: Sep | B15: 0 | C15: =AVERAGE(L15,L30) -> 0 | D15: 6 | E15: 10 | F15: 0 | G15: 1 | K15: Sep
A16: Oct | B16: 0 | C16: =AVERAGE(L16,L31) -> 0 | D16: 5 | E16: 10 | F16: 0 | G16: 0 | K16: Oct
A17: Nov | B17: 0 | C17: =AVERAGE(L17,L32) -> 1 | D17: 5 | E17: 10 | F17: 1 | G17: 3 | K17: Nov | L17: 1 | M17: 5 | N17: 1 | O17: 3
A18: Dec | B18: 0 | C18: =AVERAGE(L18,L33) -> 1 | D18: 17 | E18: 10 | F18: 1 | G18: 5 | K18: Dec | L18: 1 | M18: 17 | N18: 1 | O18: 5
K19: Annual | L19: =AVERAGE(L7:L18) -> 0.3 | M19: =MAX(M7:M18) -> 17 | N19: =AVERAGE(N7:N18) -> 0.3 | O19: =MAX(O7:O18) -> 5
J21: =+A6 -> 2022 | K21: mg/Nm3 | L21: Monthly 1/2 hourly mean | M21: Monthly 1/2 hourly maximum | N21: Monthly daily mean | O21: Monthly daily maximum
J22: A2 | K22: Jan | L22: 0 | M22: 23 | N22: 0 | O22: 1
K23: Feb | L23: 1 | M23: 3 | N23: 1 | O23: 1
K24: Mar | L24: 0 | M24: 4 | N24: 0 | O24: 1
K25: Apr | L25: 0 | M25: 15 | N25: 0 | O25: 1
K26: May | L26: 1 | M26: 6 | N26: 1 | O26: 1
K27: Jun | L27: 0 | M27: 5 | N27: 0 | O27: 1
K28: Jul | L28: 1 | M28: 6 | N28: 1 | O28: 2
K29: Aug | L29: 0 | M29: 4 | N29: 0 | O29: 1
K30: Sep | L30: 0 | M30: 6 | N30: 0 | O30: 1
K31: Oct | L31: 0 | M31: 5 | N31: 0 | O31: 0
K32: Nov
K33: Dec | L33: 1 | M33: 4 | N33: 1 | O33: 2
K34: Annual | L34: =AVERAGE(L22:L33) -> 0.3636363636 | M34: =MAX(M22:M33) -> 23 | N34: =AVERAGE(N22:N33) -> 0.3636363636 | O34: =MAX(O22:O33) -> 2
J36: =+A6 -> 2022 | K36: mg/Nm3 | L36: Monthly 1/2 hourly mean | M36: Monthly 1/2 hourly maximum | N36: Monthly daily mean | O36: Monthly daily maximum
J37: A3 | K37: Jan
K38: Feb
K39: Mar
K40: Apr
K41: May
K42: Jun
K43: Jul
K44: Aug
K45: Sep
K46: Oct
K47: Nov
A48: Comments : | K48: Dec
A49: An indicated ELV value of zero in the table above means that no ammonia limit is set in the permit. | K49: Annual | L49: =AVERAGE(L37:L48) ->  | M49: =MAX(M37:M48) -> 0 | N49: =AVERAGE(N37:N48) ->  | O49: =MAX(O37:O48) -> 0
J51: =+A6 -> 2022 | K51: mg/Nm3 | L51: Monthly 1/2 hourly mean | M51: Monthly 1/2 hourly maximum | N51: Monthly daily mean | O51: Monthly daily maximum
J52: A4 | K52: Jan
K53: Feb
K54: Mar
K55: Apr
K56: May
K57: Jun
K58: Jul
K59: Aug
K60: Sep
K61: Oct
K62: Nov
K63: Dec
K64: Annual | L64: =AVERAGE(L52:L63) ->  | M64: =MAX(M52:M63) -> 0 | N64: =AVERAGE(N52:N63) ->  | O64: =MAX(O52:O63) -> 0
J66: =+A6 -> 2022 | K66: mg/Nm3 | L66: Monthly 1/2 hourly mean | M66: Monthly 1/2 hourly maximum | N66: Monthly daily mean | O66: Monthly daily maximum
J67: A5 | K67: Jan
K68: Feb
K69: Mar
K70: Apr
K71: May
K72: Jun
K73: Jul
K74: Aug
K75: Sep
K76: Oct
K77: Nov
K78: Dec
K79: Annual | L79: =AVERAGE(L67:L78) ->  | M79: =MAX(M67:M78) -> 0 | N79: =AVERAGE(N67:N78) ->  | O79: =MAX(O67:O78) -> 0
